fUSD/lending_fUSD_20260608
["ID","MTS","AMOUNT","RATE_DAILY","PERIOD"]
[424429293,1780878650000,-151.0,0.00024658,2]
[424429316,1780878650000,-970.6,0.00024999,30]
[424429297,1780878650000,-152.0,0.00024681,8]
[424429292,1780878650000,-151.0,0.00024658,2]
[424429273,1780878650000,-1000.0,0.00024658,2]
[424429269,1780878650000,-151.0,0.00024658,2]
[424429267,1780878650000,-3554.0,0.00024594,2]
[424429268,1780878650000,-151.0,0.00024658,2]
[424429271,1780878650000,-151.0,0.00024658,2]
[424429275,1780878650000,-724.226495,0.00024658,2]
[424429274,1780878650000,-174.2,0.00024658,2]
[424429276,1780878650000,-724.226495,0.00024658,2]
[424429277,1780878650000,-724.226495,0.00024658,2]
[424429278,1780878650000,-724.226495,0.00024658,2]
[424429284,1780878650000,-724.226495,0.00024658,2]
[424429270,1780878650000,-151.0,0.00024658,2]
[424429285,1780878650000,-724.226495,0.00024658,2]
[424429281,1780878650000,-724.226495,0.00024658,2]
[424429288,1780878650000,-151.0,0.00024658,2]
[424429296,1780878650000,-175.0,0.00024658,2]
[424429289,1780878650000,-151.0,0.00024658,2]
[424429287,1780878650000,-151.0,0.00024658,2]
[424429291,1780878650000,-151.0,0.00024658,2]
[424429280,1780878650000,-724.226495,0.00024658,2]
[424429286,1780878650000,-724.226495,0.00024658,2]
[424429283,1780878650000,-724.226495,0.00024658,2]
[424429279,1780878650000,-724.226495,0.00024658,2]
[424429282,1780878650000,-724.226495,0.00024658,2]
[424429324,1780878652000,-3741.1125062,0.00025,2]
[424429323,1780878652000,-398.76259528,0.00025,2]
[424429325,1780878652000,-390.55936596,0.00025,2]
[424429321,1780878652000,-158.11872127,0.000149,2]
[424429322,1780878652000,-523.0,0.00017955,2]
[424429320,1780878652000,-256.3254999,0.000149,2]
[424429318,1780878652000,-901.92856008,0.00013926,2]
[424429319,1780878652000,-50.31091118,0.000149,2]
[424429326,1780878652000,-943.22804795,0.00025,2]
[424429329,1780878653000,-2486.78025232,0.0001968,2]
[424429327,1780878653000,-210.858,9.786e-05,2]
[424429330,1780878653000,-3764.72311705,0.0001968,2]
[424429328,1780878653000,-901.92856008,0.0001417,2]
[424429331,1780878653000,-3164.90000007,0.0001968,2]
[424429332,1780878672000,4652.65838743,0.00030136,120]
[424429337,1780878710000,1500.0,0.00030136,120]
[424429336,1780878710000,1500.0,0.00030136,120]
[424429338,1780878711000,1500.0,0.00030136,120]
[424429339,1780878711000,1500.0,0.00030136,120]
[424429341,1780878712000,1500.0,0.00030136,120]
[424429340,1780878712000,1500.0,0.00030136,120]
[424429344,1780878713000,1500.0,0.00030136,120]
[424429343,1780878713000,1500.0,0.00030136,120]
[424429342,1780878713000,1500.0,0.00030136,120]
[424429345,1780878714000,1500.0,0.00030136,120]
[424429346,1780878730000,10000.0,0.00030136,120]
[424429351,1780878783000,1500.0,0.00030136,120]
[424429354,1780878784000,1500.0,0.00030136,120]
[424429353,1780878784000,196.33462482,0.00010084,7]
[424429352,1780878784000,1500.0,0.00030136,120]
[424429355,1780878786000,1500.0,0.00030136,120]
[424429356,1780878786000,1500.0,0.00030136,120]
[424429358,1780878786000,1500.0,0.00030136,120]
[424429357,1780878786000,1500.0,0.00030136,120]
[424429359,1780878786000,1500.0,0.00030136,120]
[424429361,1780878787000,1500.0,0.00030136,120]
[424429360,1780878787000,1500.0,0.00030136,120]
[424429362,1780878792000,2955.0,0.00030137,120]
[424429365,1780878872000,3000.0,0.00030136,120]
[424429366,1780878895000,4000.0,0.00030136,120]
[424429367,1780878896000,4000.0,0.00030136,120]
[424429371,1780878897000,4000.0,0.00030136,120]
[424429370,1780878897000,4000.0,0.00030136,120]
[424429369,1780878897000,4000.0,0.00030136,120]
[424429368,1780878897000,4000.0,0.00030136,120]
[424429372,1780878898000,4000.0,0.00030136,120]
[424429373,1780878898000,4000.0,0.00030136,120]
[424429375,1780878899000,4000.0,0.00030136,120]
[424429374,1780878899000,4000.0,0.00030136,120]
[424429377,1780878950000,10000.0,0.00028767,120]
[424429379,1780878987000,9000.0,0.00028767,120]
[424429380,1780879017000,1020.0,0.00028767,120]
[424429384,1780879150000,159.0,0.0003,120]
[424429385,1780879151000,159.0,0.0003,120]
[424429386,1780879160000,159.0,0.0003,120]
[424429388,1780879241000,3148.45,0.0003013,120]
[424429390,1780879347000,1000.0,0.0003,120]
[424429464,1780879832000,-499.5654,0.00013526,2]
[424429465,1780879832000,-212.21314015,0.00013599,2]
[424429469,1780879832000,-150.0,0.00013697,2]
[424429468,1780879832000,-770.68,0.00013626,2]
[424429466,1780879832000,-1010.0,0.000136,3]
[424429462,1780879832000,-739.94,0.00013369,2]
[424429463,1780879832000,-1010.0,0.000135,2]
[424429458,1780879832000,-178.91552238,0.00012898,2]
[424429459,1780879832000,-284.97,0.00013008,2]
[424429460,1780879832000,-1000.0,0.0001303,2]
[424429470,1780879832000,-574.57860626,0.00013698,2]
[424429467,1780879832000,-155.57,0.00013626,2]
[424429457,1780879832000,-302.43473999,0.00012329,2]
[424429456,1780879832000,-34.15296508,0.00012144,2]
[424429455,1780879832000,-115.84703492,0.00012144,2]
[424429461,1780879832000,-183.34414701,0.00013269,2]
[424429471,1780879832000,-500.0,0.00013698,2]
[424429454,1780879832000,-150.0,0.00011959,2]
[424429483,1780879832000,-500.0,0.00013698,2]
[424429501,1780879832000,-40.41737736,0.00013698,2]
[424429500,1780879832000,-500.0,0.00013698,2]
[424429498,1780879832000,-500.0,0.00013698,2]
[424429497,1780879832000,-500.0,0.00013698,2]
[424429491,1780879832000,-500.0,0.00013698,2]
[424429478,1780879832000,-500.0,0.00013698,2]
[424429476,1780879832000,-500.0,0.00013698,2]
[424429499,1780879832000,-500.0,0.00013698,2]
[424429480,1780879832000,-500.0,0.00013698,2]
[424429487,1780879832000,-500.0,0.00013698,2]
[424429474,1780879832000,-351.94868829,0.00013698,2]
[424429472,1780879832000,-500.0,0.00013698,2]
[424429473,1780879832000,-501.26941348,0.00013698,2]
[424429475,1780879832000,-500.0,0.00013698,2]
[424429485,1780879832000,-500.0,0.00013698,2]
[424429481,1780879832000,-500.0,0.00013698,2]
[424429489,1780879832000,-500.0,0.00013698,2]
[424429557,1780879838000,-166.66,0.00013699,2]
[424429556,1780879838000,-500.0,0.00013698,2]
[424429558,1780879838000,-200.0,0.00013699,2]
[424429555,1780879838000,-459.58262264,0.00013698,2]
[424429559,1780879838000,-1874.95737736,0.00013699,2]
[424429657,1780879839000,-625.04262264,0.00013699,2]
[424429659,1780879839000,-190.25250033,0.000137,2]
[424429717,1780879840000,-410.70452855,0.00013758,2]
[424429718,1780879840000,-202.64797178,0.00013758,2]
[424429716,1780879840000,-159.0,0.000137,2]
[424429715,1780879840000,-217.9,0.000137,2]
[424429714,1780879840000,-9.74749967,0.000137,2]
[424429738,1780879843000,-275.14764415,0.00013758,2]
[424429740,1780879843000,-500.0,0.00013758,2]
[424429739,1780879843000,-22.20438407,0.00013758,2]
[424429747,1780879844000,-158.0,0.000138,2]
[424429748,1780879844000,-96.18996191,0.000138,2]
[424429746,1780879844000,-1016.65,0.000138,5]
[424429743,1780879844000,-215.83393831,0.00013764,2]
[424429745,1780879844000,-1010.0,0.000138,4]
[424429744,1780879844000,-160.0,0.00013764,2]
[424429741,1780879844000,-286.06465649,0.00013758,2]
[424429742,1780879844000,-213.93534351,0.00013758,2]
[424429760,1780879846000,-500.0,0.00014201,2]
[424429767,1780879846000,-166.66,0.00014384,2]
[424429764,1780879846000,-4153.7976,0.00014299,2]
[424429765,1780879846000,-159.0,0.000143,2]
[424429769,1780879846000,-500.0,0.00014398,2]
[424429766,1780879846000,-1097.49781606,0.00014313,2]
[424429763,1780879846000,-2500.0,0.00014299,2]
[424429768,1780879846000,-920.99750057,0.00014389,2]
[424429761,1780879846000,-166.66,0.00014247,2]
[424429755,1780879846000,-72.2019298,0.00013973,2]
[424429759,1780879846000,-500.0,0.00014201,2]
[424429758,1780879846000,-500.0,0.00014201,2]
[424429756,1780879846000,-500.0,0.0001403,2]
[424429757,1780879846000,-166.66,0.0001411,2]
[424429754,1780879846000,-94.4580702,0.00013973,2]
[424429753,1780879846000,-166.66,0.00013836,2]
[424429752,1780879846000,-61.81003809,0.000138,2]
[424429770,1780879846000,-500.0,0.00014398,2]
[424429762,1780879846000,-302.43473999,0.00014247,2]
[424429771,1780879846000,-39.89041358,0.00014398,2]
[424429788,1780879846000,-500.0,0.00014398,2]
[424429774,1780879846000,-500.0,0.00014398,2]
[424429773,1780879846000,-500.0,0.00014398,2]
[424429789,1780879846000,-500.0,0.00014398,2]
[424429791,1780879846000,-601.36733714,0.00014398,2]
[424429790,1780879846000,-500.0,0.00014398,2]
[424429792,1780879846000,-866.8200002,0.00014398,2]
[424429786,1780879846000,-500.0,0.00014398,2]
[424429783,1780879846000,-500.0,0.00014398,2]
[424429785,1780879846000,-98.93266288,0.00014398,2]
[424429787,1780879846000,-500.0,0.00014398,2]
[424429784,1780879846000,-401.06733712,0.00014398,2]
[424429781,1780879846000,-500.0,0.00014398,2]
[424429772,1780879846000,-460.10958642,0.00014398,2]
[424429782,1780879846000,-500.0,0.00014398,2]
[424429776,1780879846000,-482.33233725,0.00014398,2]
[424429778,1780879846000,-500.0,0.00014398,2]
[424429775,1780879846000,-500.0,0.00014398,2]
[424429777,1780879846000,-17.66766275,0.00014398,2]
[424429779,1780879846000,-500.0,0.00014398,2]
[424429780,1780879846000,-2171.765,0.00014398,2]
[424429794,1780879850000,152.0,0.0001009,7]
[424429795,1780879952000,550.0,0.00030137,120]
[424429802,1780880400000,152.0,0.00010113,7]
[424429803,1780880402000,152.0,0.00029912,120]
[424429808,1780880599000,7650.0,0.00030137,120]
[424429842,1780881032000,-183.37706887,0.00012575,2]
[424429857,1780881032000,-150.0,0.00012917,2]
[424429859,1780881032000,-1402.98,0.00012952,2]
[424429861,1780881032000,-158.67,0.00013029,2]
[424429869,1780881032000,-165.04,0.00013263,2]
[424429863,1780881032000,-262.53616023,0.000131,2]
[424429871,1780881032000,-341.56126532,0.00013301,2]
[424429867,1780881032000,-250.0,0.00013189,2]
[424429877,1780881032000,-153.22,0.00013654,2]
[424429875,1780881032000,-333.87127144,0.00013467,2]
[424429843,1780881032000,-41.44573251,0.00012575,2]
[424429865,1780881032000,-274.09,0.00013149,2]
[424429844,1780881032000,-220.94004489,0.00012575,2]
[424429835,1780881032000,-150.0,0.00010848,2]
[424429847,1780881032000,-165.27,0.00012725,2]
[424429841,1780881032000,-150.0,0.00012329,7]
[424429849,1780881032000,-53787.73,0.0001277,2]
[424429855,1780881032000,-500.0,0.00012823,2]
[424429852,1780881032000,-1494.8,0.00012784,2]
[424429839,1780881032000,-268.18750968,0.00010923,2]
[424429850,1780881032000,-150.0,0.0001277,2]
[424429840,1780881032000,-250.0,0.00011905,2]
[424429837,1780881032000,-153.22,0.00010923,2]
[424429836,1780881032000,-273.87158044,0.00010873,2]
[424429838,1780881032000,-500.0,0.00010923,2]
[424429834,1780881032000,-464.22509101,0.00010773,2]
[424429873,1780881032000,-152.7719295,0.00013301,2]
[424429845,1780881032000,-453.65210998,0.00012575,2]
[424429893,1780881032000,-1400.0,0.000139,5]
[424429879,1780881032000,-166.66,0.00013699,2]
[424429927,1780881032000,-35355.47090547,0.00014267,2]
[424429928,1780881032000,-172378.54965803,0.00014267,2]
[424429925,1780881032000,-302.624343,0.00014267,2]
[424429926,1780881032000,-114748.80097994,0.00014267,2]
[424429918,1780881032000,-500.0,0.00014266,2]
[424429915,1780881032000,-166.66,0.00014247,2]
[424429916,1780881032000,-500.0,0.00014266,2]
[424429917,1780881032000,-500.0,0.00014266,2]
[424429924,1780881032000,-500.0,0.00014266,2]
[424429922,1780881032000,-500.0,0.00014266,2]
[424429921,1780881032000,-521.36,0.00014266,2]
[424429914,1780881032000,-728.79196952,0.00014199,2]
[424429923,1780881032000,-500.0,0.00014266,2]
[424429920,1780881032000,-500.0,0.00014266,2]
[424429911,1780881032000,-854.357,0.00014167,2]
[424429909,1780881032000,-2000.0,0.00014167,2]
[424429891,1780881032000,-160.0,0.0001388,2]
[424429919,1780881032000,-500.0,0.00014266,2]
[424429897,1780881032000,-166.66,0.00013973,2]
[424429883,1780881032000,-400.0,0.000137,5]
[424429899,1780881032000,-250.0,0.00014,2]
[424429888,1780881032000,-166.66,0.00013836,2]
[424429895,1780881032000,-150.0,0.000139,2]
[424429881,1780881032000,-200.0,0.00013699,2]
[424429901,1780881032000,-501.0,0.00014082,2]
[424429905,1780881032000,-166.66,0.0001411,2]
[424429903,1780881032000,-6456.5213,0.00014101,2]
[424429906,1780881032000,-1375.14812709,0.00014167,2]
[424429912,1780881032000,-2500.0,0.00014167,2]
[424429886,1780881032000,-900.0,0.000138,5]
[424429948,1780881038000,-500.0,0.00014298,2]
[424429943,1780881038000,-613.99833372,0.00014289,2]
[424429950,1780881038000,-2000.0,0.00014298,2]
[424429954,1780881038000,-500.0,0.00014298,2]
[424429955,1780881038000,-396.87484801,0.00014298,2]
[424429957,1780881038000,-193.0,0.00014299,2]
[424429961,1780881038000,-151.0,0.00014396,2]
[424429958,1780881038000,-1494.8,0.00014382,2]
[424429963,1780881038000,-153.78606725,0.00014398,2]
[424429940,1780881038000,-193.0,0.00014267,2]
[424429953,1780881038000,-500.0,0.00014298,2]
[424429959,1780881038000,-166.66,0.00014384,2]
[424429947,1780881038000,-500.0,0.00014298,2]
[424429952,1780881038000,-500.0,0.00014298,2]
[424429944,1780881038000,-500.0,0.00014298,2]
[424429942,1780881038000,-193.0,0.00014267,2]
[424429949,1780881038000,-500.0,0.00014298,2]
[424429946,1780881038000,-500.0,0.00014298,2]
[424429951,1780881038000,-500.0,0.00014298,2]
[424429941,1780881038000,-193.0,0.00014267,2]
[424429938,1780881038000,-8179.224472,0.00014267,2]
[424429936,1780881038000,-4063.64,0.00014267,2]
[424429939,1780881038000,-193.0,0.00014267,2]
[424429937,1780881038000,-370690.68385756,0.00014267,2]
[424429956,1780881038000,-1500000.0,0.00014299,2]
[424429945,1780881038000,-500.0,0.00014298,2]
[424429964,1780881038000,-989.51,0.00014398,2]
[424429960,1780881038000,-151.0,0.00014396,2]
[424429962,1780881038000,-500.0,0.00014398,2]
[424429999,1780881038000,-369.79,0.000151,2]
[424430001,1780881038000,-500.0,0.00015177,2]
[424429987,1780881038000,-151.0,0.00014986,2]
[424429988,1780881038000,-316.37535548,0.00015,2]
[424429984,1780881038000,-551.61,0.00014985,2]
[424429982,1780881038000,-865.43,0.00014985,2]
[424429978,1780881038000,-1872.49,0.00014985,2]
[424429985,1780881038000,-646.23,0.00014985,2]
[424429997,1780881038000,-243.89,0.00015068,2]
[424429990,1780881038000,-251.86022102,0.00015,2]
[424429994,1780881038000,-1500.0,0.00015029,2]
[424429992,1780881038000,-255.0,0.00015026,2]
[424429979,1780881038000,-150.0,0.00014985,2]
[424429980,1780881038000,-1391.43,0.00014985,2]
[424429970,1780881038000,-989.51,0.00014398,2]
[424429975,1780881038000,-386.54081148,0.0001458,2]
[424429976,1780881038000,-168.73603908,0.00014882,2]
[424429973,1780881038000,-500.0,0.00014398,2]
[424429971,1780881038000,-989.51,0.00014398,2]
[424429968,1780881038000,-989.51,0.00014398,2]
[424429965,1780881038000,-989.51,0.00014398,2]
[424429966,1780881038000,-989.51,0.00014398,2]
[424429969,1780881038000,-989.51,0.00014398,2]
[424429977,1780881038000,-159.0,0.000149,2]
[424429972,1780881038000,-989.51,0.00014398,2]
[424429974,1780881038000,-166.26497204,0.00014398,2]
[424429967,1780881038000,-989.51,0.00014398,2]
[424430096,1780881039000,-229.2,0.00016438,2]
[424430095,1780881039000,-830.5,0.00016438,2]
[424430089,1780881039000,-1068.11,0.00016341,2]
[424430103,1780881039000,-151.0,0.00016491,2]
[424430091,1780881039000,-1107.63007,0.00016341,2]
[424430087,1780881039000,-1030.0,0.00016341,2]
[424430074,1780881039000,-215.26951446,0.000161,2]
[424430083,1780881039000,-158.67,0.00016286,2]
[424430077,1780881039000,-1613.0535,0.00016125,2]
[424430072,1780881039000,-184.71653932,0.00016091,3]
[424430070,1780881039000,-10544.86067982,0.00016037,2]
[424430093,1780881039000,-153.22,0.00016384,2]
[424430101,1780881039000,-230.58,0.00016438,2]
[424430125,1780881039000,-1358.0,0.00016594,2]
[424430078,1780881039000,-215.26951446,0.000162,2]
[424430081,1780881039000,-433.0,0.00016249,2]
[424430085,1780881039000,-159.0,0.000163,3]
[424430105,1780881039000,-151.0,0.00016491,2]
[424430111,1780881039000,-989.51,0.00016493,2]
[424430116,1780881039000,-989.51,0.00016493,2]
[424430118,1780881039000,-989.51,0.00016493,2]
[424430107,1780881039000,-989.51,0.00016493,2]
[424430109,1780881039000,-989.51,0.00016493,2]
[424430113,1780881039000,-989.51,0.00016493,2]
[424430120,1780881039000,-989.51,0.00016493,2]
[424430123,1780881039000,-150.0,0.00016594,2]
[424430068,1780881039000,-215.26951446,0.00016,2]
[424430099,1780881039000,-243.89,0.00016438,2]
[424430066,1780881039000,-300.0,0.00016,2]
[424430127,1780881039000,-3554.0,0.00016594,2]
[424430054,1780881039000,-453.65210998,0.00015545,2]
[424430012,1780881039000,-973.98,0.000153,2]
[424430016,1780881039000,-368.14,0.000153,2]
[424430014,1780881039000,-664.53,0.000153,2]
[424430018,1780881039000,-408.77,0.000153,2]
[424430007,1780881039000,-251.86022102,0.000152,2]
[424430005,1780881039000,-316.37535548,0.000152,2]
[424430003,1780881039000,-2000.0,0.00015177,2]
[424430009,1780881039000,-454.92016517,0.00015296,3]
[424430020,1780881039000,-264.87,0.000153,2]
[424430022,1780881039000,-316.37535548,0.000153,2]
[424430025,1780881039000,-251.86022102,0.000153,2]
[424430035,1780881039000,-9999.99,0.0001531,2]
[424430027,1780881039000,-29999.99,0.0001531,2]
[424430037,1780881039000,-2000.0,0.00015397,2]
[424430039,1780881039000,-500.0,0.00015422,2]
[424430041,1780881039000,-2000.0,0.00015437,2]
[424430029,1780881039000,-7298.87,0.0001531,2]
[424430031,1780881039000,-2197.27,0.0001531,2]
[424430043,1780881039000,-2000.0,0.00015439,2]
[424430033,1780881039000,-1218.61,0.0001531,2]
[424430048,1780881039000,-251.86022102,0.000155,2]
[424430049,1780881039000,-1375.14812709,0.00015541,2]
[424430045,1780881039000,-316.37535548,0.000155,2]
[424430052,1780881039000,-224.82280138,0.00015545,2]
[424430058,1780881039000,-316.37535548,0.000156,2]
[424430064,1780881039000,-1494.8,0.0001598,2]
[424430062,1780881039000,-199.5,0.00015848,2]
[424430056,1780881039000,-1555.5,0.00015577,2]
[424430121,1780881039000,-250.0,0.00016594,2]
[424430060,1780881039000,-251.86022102,0.000156,2]
[424430131,1780881039000,-1236.828,0.00016594,2]
[424430191,1780881039000,-1798.80895522,0.00017769,2]
[424430195,1780881039000,-161.47066132,0.00017775,2]
[424430183,1780881039000,-9999.99,0.00017728,2]
[424430193,1780881039000,-172.94132264,0.00017775,2]
[424430197,1780881039000,-150.0,0.00017775,2]
[424430207,1780881039000,-159.0,0.000179,3]
[424430209,1780881039000,-1900.0,0.000179,6]
[424430213,1780881039000,-440.25067908,0.00018,2]
[424430211,1780881039000,-211.72889114,0.000179,2]
[424430199,1780881039000,-350.0,0.00017808,2]
[424430205,1780881039000,-568.60034892,0.00017808,2]
[424430203,1780881039000,-500.0,0.00017808,2]
[424430201,1780881039000,-500.0,0.00017808,2]
[424430217,1780881039000,-189.70273831,0.00018,2]
[424430219,1780881039000,-350.0,0.00018,2]
[424430221,1780881039000,-14508.48,0.00018,2]
[424430223,1780881039000,-12937.95,0.00018,2]
[424430225,1780881039000,-297.84,0.00018,2]
[424430234,1780881039000,-2000.0,0.00018201,2]
[424430227,1780881039000,-231.24104609,0.00018042,2]
[424430229,1780881039000,-1402.98,0.00018132,2]
[424430231,1780881039000,-440.25067908,0.000182,2]
[424430240,1780881039000,-1280.88388877,0.00018317,2]
[424430242,1780881039000,-1865.36488656,0.00018317,2]
[424430236,1780881039000,-1375.14812709,0.00018289,2]
[424430238,1780881039000,-1072.78003083,0.000183,2]
[424430129,1780881039000,-1279.005,0.00016594,2]
[424430179,1780881039000,-24999.99,0.00017728,2]
[424430244,1780881039000,-500.0,0.00018342,2]
[424430215,1780881039000,-166.72606525,0.00018,2]
[424430185,1780881039000,-9999.99,0.00017728,2]
[424430144,1780881039000,-197.0,0.000168,3]
[424430136,1780881039000,-423.198,0.00016594,2]
[424430181,1780881039000,-3435.64,0.00017728,5]
[424430134,1780881039000,-3642.0,0.00016594,2]
[424430138,1780881039000,-1148.61238259,0.00016673,2]
[424430142,1780881039000,-168.31,0.00016712,2]
[424430146,1780881039000,-158.0,0.000169,4]
[424430148,1780881039000,-1375.14812709,0.00016915,2]
[424430150,1780881039000,-741.74,0.00016922,2]
[424430154,1780881039000,-1019.0,0.00017093,5]
[424430152,1780881039000,-1272.0,0.00017093,5]
[424430168,1780881039000,-1494.8,0.00017579,2]
[424430167,1780881039000,-736.0,0.00017556,2]
[424430156,1780881039000,-2819.0,0.00017093,5]
[424430140,1780881039000,-1672.7364795,0.00016673,2]
[424430165,1780881039000,-185.082276,0.0001746,2]
[424430171,1780881039000,-9999.99,0.00017728,2]
[424430173,1780881039000,-4999.99,0.00017728,2]
[424430177,1780881039000,-150.99,0.00017728,2]
[424430187,1780881039000,-193.0,0.00017728,2]
[424430175,1780881039000,-299.99,0.00017728,4]
[424430159,1780881039000,-1191.11104074,0.00017221,2]
[424430189,1780881039000,-1235.18214925,0.00017769,2]
[424430170,1780881039000,-9999.99,0.00017728,2]
[424430169,1780881039000,-274.09,0.00017588,2]
[424430161,1780881039000,-1734.62772924,0.00017221,2]
[424430172,1780881039000,-13434.42,0.00017728,2]
[424430166,1780881039000,-183.00047,0.0001746,2]
[424430163,1780881039000,-166.240216,0.00017373,2]
[424430283,1780881040000,-152.0,0.00018763,4]
[424430276,1780881040000,-645.0,0.000185,2]
[424430278,1780881040000,-152.0,0.0001852,3]
[424430280,1780881040000,-440.25067908,0.000187,2]
[424430287,1780881040000,-1934.38338736,0.00018865,2]
[424430293,1780881040000,-745.15645039,0.00018877,2]
[424430289,1780881040000,-500.0,0.00018877,2]
[424430299,1780881040000,-152.0,0.00019005,5]
[424430295,1780881040000,-158.0,0.000189,5]
[424430274,1780881040000,-315.0,0.000185,2]
[424430285,1780881040000,-1328.27659266,0.00018865,2]
[424430272,1780881040000,-309.0,0.000185,2]
[424430258,1780881040000,-231.02597309,0.000184,2]
[424430263,1780881040000,-1198.0,0.00018402,5]
[424430270,1780881040000,-440.25067908,0.000185,2]
[424430261,1780881040000,-231.02597309,0.000184,2]
[424430267,1780881040000,-386.54081146,0.00018433,2]
[424430256,1780881040000,-231.02597309,0.000184,2]
[424430254,1780881040000,-440.25067908,0.000184,2]
[424430248,1780881040000,-500.0,0.00018342,2]
[424430252,1780881040000,-85443.54,0.00018356,2]
[424430250,1780881040000,-493.15769984,0.00018355,2]
[424430246,1780881040000,-500.0,0.00018342,2]
[424430291,1780881040000,-895.33449641,0.00018877,2]
[424430265,1780881040000,-830.5,0.0001841,2]
[424430311,1780881040000,-1377.42282658,0.00019413,2]
[424430297,1780881040000,-1252.0,0.00018987,2]
[424430313,1780881040000,-2005.9555727,0.00019413,2]
[424430314,1780881040000,-232.0,0.00019452,2]
[424430348,1780881040000,-989.51,0.00019679,2]
[424430350,1780881040000,-238.39359468,0.00019679,2]
[424430333,1780881040000,-1274.0,0.00019594,2]
[424430335,1780881040000,-1227.0,0.00019594,2]
[424430336,1780881040000,-3642.0,0.00019594,2]
[424430331,1780881040000,-3554.0,0.00019594,2]
[424430329,1780881040000,-1358.0,0.00019594,2]
[424430340,1780881040000,-1459.44,0.000196,2]
[424430342,1780881040000,-1375.14812709,0.00019663,2]
[424430346,1780881040000,-989.51,0.00019679,2]
[424430344,1780881040000,-1030.70236582,0.00019679,5]
[424430397,1780881040000,-751.11640532,0.00019679,2]
[424430327,1780881040000,-150.0,0.00019594,2]
[424430301,1780881040000,-1494.8,0.00019177,2]
[424430399,1780881040000,-936.3827379,0.0001968,2]
[424430317,1780881040000,-1224.0,0.00019452,2]
[424430307,1780881040000,-315.0622604,0.00019328,2]
[424430318,1780881040000,-464.0,0.00019452,2]
[424430321,1780881040000,-152.0,0.00019491,7]
[424430303,1780881040000,-1000.0,0.000192,7]
[424430305,1780881040000,-152.0,0.00019248,6]
[424430325,1780881040000,-10307.2136,0.0001958,2]
[424430323,1780881040000,-158.67,0.00019543,2]
[424430309,1780881040000,-500.0,0.00019411,2]
[424430338,1780881040000,-419.0,0.00019594,2]
[424430547,1780881042000,-300.0,0.00019679,5]
[424430582,1780881043000,-151.0,0.00019961,2]
[424430577,1780881043000,-193.0,0.00019961,2]
[424430590,1780881043000,-151.0,0.00019961,2]
[424430587,1780881043000,-151.0,0.00019961,2]
[424430579,1780881043000,-209.40437687,0.00019961,2]
[424430580,1780881043000,-151.0,0.00019961,2]
[424430589,1780881043000,-151.0,0.00019961,2]
[424430581,1780881043000,-151.0,0.00019961,2]
[424430583,1780881043000,-693.39197629,0.00019961,2]
[424430588,1780881043000,-151.0,0.00019961,2]
[424430573,1780881043000,-131.08323716,0.000199,2]
[424430576,1780881043000,-759.24209452,0.00019945,2]
[424430575,1780881043000,-990.0,0.00019908,2]
[424430571,1780881043000,-152.0,0.00019733,8]
[424430572,1780881043000,-464.0,0.00019863,2]
[424430569,1780881043000,-674.0,0.0001968,5]
[424430574,1780881043000,-52.75657757,0.000199,2]